[Event "44th Chess Olympiad Women 2022"]
[Site "Chennai"]
[Date "2022.08.03"]
[Round "6.52"]
[White "Misawa, Yuki"]
[Black "Terubea, Cydel"]
[Result "0-1"]
[WhiteElo "1587"]
[BlackElo "1450"]
[Annotator "NA RC"]
[PlyCount "90"]
[EventDate "2022.??.??"]
[TimeControl "60"]

1. d4 {[%emt 0:00:03]} d5 {[%emt 0:00:05]} 2. c4 {[%emt 0:00:04]} e6 {[%emt 0:
00:00]} 3. Nc3 {[%emt 0:00:04]} Nf6 {[%emt 0:00:30]} 4. Nf3 {[%emt 0:00:07]}
Be7 {[%emt 0:01:34]} 5. Bg5 {[%emt 0:00:34]} h6 {[%emt 0:00:31]} 6. Bh4 {
[%emt 0:00:34]} a6 {[%emt 0:02:25]} 7. e3 {[%emt 0:03:05]} b6 {[%emt 0:01:42]}
8. cxd5 {[%emt 0:03:53]} Nxd5 {[%emt 0:04:40]} 9. Nxd5 {[%emt 0:03:48]} exd5 {
[%emt 0:00:38]} 10. Bxe7 {[%emt 0:02:02]} Qxe7 {[%emt 0:00:09]} 11. a3 {
[%emt 0:00:55]} Bg4 {[%emt 0:01:33]} 12. Be2 {[%emt 0:00:32]} Nd7 {[%emt 0:00:
00]} 13. b4 {[%emt 0:05:14]} Nf6 {[%emt 0:01:46]} 14. O-O {[%emt 0:01:16]} O-O
{[%emt 0:02:03]} 15. Rc1 {[%emt 0:01:51]} Rfc8 {[%emt 0:06:12]} 16. Qb3 {
[%emt 0:04:08]} c6 {[%emt 0:01:01]} 17. Qa2 {[%emt 0:04:08]} Ne4 {[%emt 0:00:
00]} 18. Ne5 {[%emt 0:02:50]} Bd7 {[%emt 0:03:49]} 19. Bh5 {[%emt 0:04:17]} g6
{[%emt 0:01:16]} 20. Bf3 {[%emt 0:00:54]} Kg7 {[%emt 0:02:26]} 21. Rc2 {
[%emt 0:05:49]} f6 {[%emt 0:00:55]} 22. Nxd7 {[%emt 0:01:33]} Qxd7 {[%emt 0:00:
00]} 23. Bxe4 {[%emt 0:02:06]} dxe4 {[%emt 0:00:11]} 24. Rfc1 {[%emt 0:00:40]}
Rc7 {[%emt 0:04:40]} 25. d5 {[%emt 0:04:32]} Rac8 {[%emt 0:00:18]} 26. dxc6 {
[%emt 0:04:38]} Rxc6 {[%emt 0:00:10]} 27. g3 {[%emt 0:02:27]} Rxc2 {[%emt 0:00:
00]} 28. Rxc2 {[%emt 0:00:16]} Qd1+ {[%emt 0:00:08]} 29. Kg2 {[%emt 0:00:30]}
Rxc2 {[%emt 0:00:12]} 30. Qe6 {[%emt 0:01:09]} Qf3+ {[%emt 0:02:09]} 31. Kh3 {
[%emt 0:00:35]} Qf5+ {[%emt 0:00:05]} 32. Qxf5 {[%emt 0:01:55]} gxf5 {[%emt 0:
00:00]} 33. a4 {[%emt 0:01:05]} Rxf2 {[%emt 0:00:27]} 34. b5 {[%emt 0:00:45]}
axb5 {[%emt 0:00:11]} 35. axb5 {[%emt 0:00:13]} Rf3 {[%emt 0:00:18]} 36. Kh4 {
[%emt 0:00:40]} Rxe3 {[%emt 0:00:19]} 37. Kh5 {[%emt 0:00:13]} Rb3 {[%emt 0:00:
00]} 38. h4 {[%emt 0:02:25]} Rxb5 {[%emt 0:00:32]} 39. g4 {[%emt 0:00:13]} f4+
{[%emt 0:00:11]} 40. g5 {[%emt 0:00:15]} f3 {[%emt 0:00:36]} 41. Kg4 {[%emt 0:
00:00]} f2 {[%emt 0:30:15]} 42. gxh6+ {[%emt 0:01:45]} Kxh6 {[%emt 0:00:10]}
43. h5 {[%emt 0:00:48]} f1=Q {[%emt 0:00:27]} 44. Kh4 {[%emt 0:00:19]} Rxh5+ {
[%emt 0:00:14]} 45. Kg4 {[%emt 0:00:19]} Qf3# {[%emt 0:00:07]} 0-1

[Event "44th Chess Olympiad Women 2022"]
[Site "Chennai"]
[Date "2022.08.03"]
[Round "6.52"]
[White "Prasad, Tanvi"]
[Black "Arai, Yuki"]
[Result "1-0"]
[WhiteElo "1165"]
[BlackElo "1495"]
[Annotator "NA RC"]
[PlyCount "65"]
[EventDate "2022.??.??"]
[TimeControl "60"]

1. d4 {[%emt 0:00:05]} Nf6 {[%emt 0:00:08]} 2. c4 {[%emt 0:00:05]} e6 {[%emt 0:
00:00]} 3. Nc3 {[%emt 0:00:10]} Bb4 {[%emt 0:00:16]} 4. Bd2 {[%emt 0:00:49]}
O-O {[%emt 0:00:35]} 5. a3 {[%emt 0:00:22]} Bxc3 {[%emt 0:01:29]} 6. Bxc3 {
[%emt 0:00:21]} b6 {[%emt 0:07:53]} 7. Nf3 {[%emt 0:00:45]} Bb7 {[%emt 0:00:18]
} 8. e3 {[%emt 0:00:57]} d6 {[%emt 0:02:07]} 9. b4 {[%emt 0:01:47]} Nbd7 {
[%emt 0:03:00]} 10. Bd3 {[%emt 0:01:24]} Ne4 {[%emt 0:05:53]} 11. Qc2 {[%emt 0:
00:00]} f5 {[%emt 0:02:47]} 12. Bb2 {[%emt 0:00:52]} Rc8 {[%emt 0:05:41]} 13.
O-O {[%emt 0:03:56]} c5 {[%emt 0:07:03]} 14. dxc5 {[%emt 0:04:01]} dxc5 {
[%emt 0:01:29]} 15. b5 {[%emt 0:00:00]} Ndf6 {[%emt 0:07:42]} 16. Rfd1 {
[%emt 0:01:33]} Qe8 {[%emt 0:01:48]} 17. Ne5 {[%emt 0:02:42]} Qh5 {[%emt 0:00:
00]} 18. Be2 {[%emt 0:02:31]} Qh4 {[%emt 0:08:31]} 19. Bf3 {[%emt 0:03:00]} g5
{[%emt 0:06:26]} 20. g3 {[%emt 0:05:44]} Qh6 {[%emt 0:05:29]} 21. Bg2 {[%emt 0:
00:00]} g4 {[%emt 0:01:44]} 22. Nd7 {[%emt 0:01:57]} Nxd7 {[%emt 0:06:05]} 23.
Rxd7 {[%emt 0:00:54]} Rf7 {[%emt 0:01:40]} 24. Rad1 {[%emt 0:01:45]} Qf8 {
[%emt 0:03:16]} 25. Bxe4 {[%emt 0:02:01]} Bxe4 {[%emt 0:00:00]} 26. Qc3 {
[%emt 0:00:17]} Rf6 {[%emt 0:03:00]} 27. Qxf6 {[%emt 0:00:19]} Qxf6 {[%emt 0:
00:00]} 28. Bxf6 {[%emt 0:00:07]} Ra8 {[%emt 0:01:18]} 29. Rg7+ {[%emt 0:01:18]
} Kf8 {[%emt 0:02:53]} 30. Rxh7 {[%emt 0:01:18]} a6 {[%emt 0:02:19]} 31. Rdd7 {
[%emt 0:01:13]} Ke8 {[%emt 0:01:09]} 32. Rde7+ {[%emt 0:00:12]} Kd8 {[%emt 0:
00:00]} 33. Rh8# {[%emt 0:01:01]} 1-0

[Event "44th Chess Olympiad Women 2022"]
[Site "Chennai"]
[Date "2022.08.03"]
[Round "6.52"]
[White "Sakai, Azumi"]
[Black "Lyons, Kieran"]
[Result "1-0"]
[WhiteElo "1759"]
[BlackElo "1767"]
[Annotator "NA RC"]
[PlyCount "83"]
[EventDate "2022.??.??"]
[TimeControl "60"]

1. d4 {[%emt 0:00:04]} f5 {[%emt 0:00:03]} 2. Bg5 {[%emt 0:00:06]} h6 {[%emt 0:
00:00]} 3. Bh4 {[%emt 0:00:05]} g5 {[%emt 0:01:01]} 4. e3 {[%emt 0:00:16]} Nf6
{[%emt 0:00:16]} 5. Bg3 {[%emt 0:00:07]} e6 {[%emt 0:00:48]} 6. h4 {[%emt 0:00:
00]} g4 {[%emt 0:01:37]} 7. h5 {[%emt 0:00:38]} d6 {[%emt 0:11:24]} 8. Ne2 {
[%emt 0:00:45]} Ne4 {[%emt 0:02:51]} 9. Bh4 {[%emt 0:01:25]} Be7 {[%emt 0:00:
00]} 10. Bxe7 {[%emt 0:00:27]} Qxe7 {[%emt 0:00:04]} 11. Nf4 {[%emt 0:00:34]}
Qg5 {[%emt 0:01:38]} 12. Nd2 {[%emt 0:02:43]} g3 {[%emt 0:05:10]} 13. Nxe4 {
[%emt 0:01:31]} fxe4 {[%emt 0:00:40]} 14. Qe2 {[%emt 0:07:42]} gxf2+ {[%emt 0:
00:00]} 15. Qxf2 {[%emt 0:00:51]} O-O {[%emt 0:04:25]} 16. Rh3 {[%emt 0:05:40]}
Kh7 {[%emt 0:06:57]} 17. Rg3 {[%emt 0:05:30]} Qa5+ {[%emt 0:01:04]} 18. Qd2 {
[%emt 0:01:46]} Qxd2+ {[%emt 0:01:50]} 19. Kxd2 {[%emt 0:00:05]} Nc6 {[%emt 0:
00:00]} 20. Be2 {[%emt 0:02:50]} e5 {[%emt 0:02:20]} 21. Ng6 {[%emt 0:02:14]}
Rg8 {[%emt 0:07:52]} 22. Rf1 {[%emt 0:03:12]} Be6 {[%emt 0:03:16]} 23. Rf6 {
[%emt 0:00:46]} Bd5 {[%emt 0:05:34]} 24. c4 {[%emt 0:00:36]} Rg7 {[%emt 0:00:
00]} 25. cxd5 {[%emt 0:01:28]} Ne7 {[%emt 0:00:40]} 26. Bc4 {[%emt 0:02:13]}
exd4 {[%emt 0:01:01]} 27. exd4 {[%emt 0:00:57]} Rag8 {[%emt 0:00:32]} 28. a3 {
[%emt 0:01:36]} Nxg6 {[%emt 0:01:00]} 29. Rfxg6 {[%emt 0:00:42]} Rxg6 {[%emt 0:
00:00]} 30. hxg6+ {[%emt 0:00:15]} Rxg6 {[%emt 0:00:05]} 31. Rxg6 {[%emt 0:00:
00]} Kxg6 {[%emt 0:00:04]} 32. Ke3 {[%emt 0:00:10]} Kf5 {[%emt 0:00:06]} 33.
Be2 {[%emt 0:00:24]} a5 {[%emt 0:09:09]} 34. g4+ {[%emt 0:00:26]} Kf6 {[%emt 0:
00:00]} 35. Kxe4 {[%emt 0:00:24]} Kg5 {[%emt 0:01:28]} 36. a4 {[%emt 0:01:36]}
b6 {[%emt 0:00:32]} 37. Bd1 {[%emt 0:00:18]} Kg6 {[%emt 0:01:01]} 38. Kf4 {
[%emt 0:00:09]} Kf6 {[%emt 0:00:30]} 39. Bc2 {[%emt 0:00:08]} Kg7 {[%emt 0:00:
00]} 40. Kf5 {[%emt 0:00:12]} Kf7 {[%emt 0:00:59]} 41. Bd3 {[%emt 0:30:11]} Kf8
{[%emt 0:42:12]} 42. Ke4 {[%emt 0:03:34]} 1-0

[Event "44th Chess Olympiad Women 2022"]
[Site "Chennai"]
[Date "2022.08.03"]
[Round "6.53"]
[White "La Fleur, Zara"]
[Black "Ampaire Shakira"]
[Result "0-1"]
[WhiteElo "1513"]
[BlackElo "1666"]
[Annotator "NA RC"]
[PlyCount "106"]
[EventDate "2022.??.??"]
[TimeControl "60"]

1. e4 {[%emt 0:00:05]} c5 {[%emt 0:01:26]} 2. Nf3 {[%emt 0:00:19]} Nc6 {
[%emt 0:00:24]} 3. d4 {[%emt 0:00:15]} cxd4 {[%emt 0:00:14]} 4. Nxd4 {[%emt 0:
00:00]} e5 {[%emt 0:00:15]} 5. Nb5 {[%emt 0:05:24]} Nf6 {[%emt 0:02:49]} 6.
N1c3 {[%emt 0:01:39]} a6 {[%emt 0:03:22]} 7. Nd6+ {[%emt 0:02:31]} Bxd6 {
[%emt 0:00:10]} 8. Qxd6 {[%emt 0:00:10]} Qe7 {[%emt 0:00:41]} 9. Qxe7+ {
[%emt 0:01:06]} Kxe7 {[%emt 0:00:11]} 10. Bg5 {[%emt 0:00:41]} Nb4 {[%emt 0:00:
00]} 11. O-O-O {[%emt 0:02:20]} h6 {[%emt 0:00:09]} 12. Be3 {[%emt 0:11:09]} d6
{[%emt 0:00:52]} 13. a3 {[%emt 0:00:39]} Nc6 {[%emt 0:00:19]} 14. Nd5+ {
[%emt 0:00:33]} Nxd5 {[%emt 0:01:48]} 15. exd5 {[%emt 0:01:11]} Nd8 {[%emt 0:
00:00]} 16. f4 {[%emt 0:07:51]} f6 {[%emt 0:09:29]} 17. Be2 {[%emt 0:02:04]}
Bf5 {[%emt 0:01:42]} 18. c4 {[%emt 0:09:12]} Nf7 {[%emt 0:03:44]} 19. Kd2 {
[%emt 0:01:34]} Rhc8 {[%emt 0:03:08]} 20. Rc1 {[%emt 0:00:40]} Be4 {[%emt 0:00:
00]} 21. Rhg1 {[%emt 0:09:26]} exf4 {[%emt 0:04:54]} 22. Bxf4 {[%emt 0:00:32]}
g5 {[%emt 0:00:08]} 23. Be3 {[%emt 0:02:55]} f5 {[%emt 0:00:54]} 24. Bd4 {
[%emt 0:01:15]} Ne5 {[%emt 0:00:47]} 25. Bxe5 {[%emt 0:01:58]} dxe5 {[%emt 0:
00:00]} 26. Bd3 {[%emt 0:01:01]} Bxd3 {[%emt 0:00:45]} 27. Kxd3 {[%emt 0:00:09]
} Kd6 {[%emt 0:00:07]} 28. Rgf1 {[%emt 0:00:42]} Rf8 {[%emt 0:00:56]} 29. Rc2 {
[%emt 0:02:45]} Rae8 {[%emt 0:01:55]} 30. Re2 {[%emt 0:07:25]} b5 {[%emt 0:00:
00]} 31. b3 {[%emt 0:03:11]} bxc4+ {[%emt 0:01:10]} 32. bxc4 {[%emt 0:00:29]}
Kc5 {[%emt 0:02:13]} 33. Rfe1 {[%emt 0:03:25]} e4+ {[%emt 0:00:29]} 34. Kc3 {
[%emt 0:00:12]} a5 {[%emt 0:02:34]} 35. Rb2 {[%emt 0:02:42]} Rb8 {[%emt 0:00:
00]} 36. Reb1 {[%emt 0:00:34]} Rxb2 {[%emt 0:01:18]} 37. Rxb2 {[%emt 0:00:06]}
f4 {[%emt 0:00:12]} 38. Rb5+ {[%emt 0:02:31]} Kd6 {[%emt 0:00:09]} 39. Kd4 {
[%emt 0:04:49]} f3 {[%emt 0:00:18]} 40. c5+ {[%emt 0:02:48]} Ke7 {[%emt 0:00:
00]} 41. Rb7+ {[%emt 0:38:34]} Kf6 {[%emt 0:31:14]} 42. Kxe4 {[%emt 0:00:00]}
fxg2 {[%emt 0:00:00]} 43. Rb1 {[%emt 0:00:00]} Ke7 {[%emt 0:00:00]} 44. Rg1 {
[%emt 0:00:00]} Rf2 {[%emt 0:00:00]} 45. Ke3 {[%emt 0:00:00]} Rc2 {[%emt 0:00:
00]} 46. Kd4 {[%emt 0:00:00]} Rd2+ {[%emt 0:00:00]} 47. Kc4 {[%emt 0:00:00]} g4
{[%emt 0:00:00]} 48. d6+ {[%emt 0:00:00]} Kd7 {[%emt 0:00:00]} 49. Kc3 {
[%emt 0:01:35]} Ra2 {[%emt 0:00:00]} 50. Kb3 {[%emt 0:03:00]} Rf2 {[%emt 0:00:
00]} 51. Kc4 {[%emt 0:00:20]} Kc6 {[%emt 0:00:00]} 52. Kd3 {[%emt 0:01:18]} h5
{[%emt 0:00:00]} 53. Rb1 {[%emt 0:02:10]} Rf1 {[%emt 0:00:00]} 0-1

[Event "44th Chess Olympiad Women 2022"]
[Site "Chennai"]
[Date "2022.08.03"]
[Round "6.53"]
[White "Mohammed, Celine Angelina"]
[Black "Kawuma Patricia"]
[Result "0-1"]
[WhiteElo "1100"]
[BlackElo "1653"]
[Annotator "NA RC"]
[PlyCount "36"]
[EventDate "2022.??.??"]
[TimeControl "60"]

1. e4 {[%emt 0:00:03]} e5 {[%emt 0:00:10]} 2. Nf3 {[%emt 0:00:05]} Nc6 {
[%emt 0:00:10]} 3. Nc3 {[%emt 0:00:09]} Bc5 {[%emt 0:00:25]} 4. a3 {[%emt 0:00:
00]} d6 {[%emt 0:00:14]} 5. Bb5 {[%emt 0:01:55]} Nge7 {[%emt 0:00:33]} 6. Na4 {
[%emt 0:05:51]} Bb6 {[%emt 0:00:20]} 7. Nxb6 {[%emt 0:00:27]} axb6 {[%emt 0:00:
00]} 8. b4 {[%emt 0:03:07]} O-O {[%emt 0:00:47]} 9. Bb2 {[%emt 0:01:46]} Bg4 {
[%emt 0:07:29]} 10. h3 {[%emt 0:00:29]} Bh5 {[%emt 0:00:22]} 11. Be2 {[%emt 0:
00:00]} Bxf3 {[%emt 0:04:15]} 12. Bxf3 {[%emt 0:00:35]} f5 {[%emt 0:00:09]} 13.
d3 {[%emt 0:01:11]} fxe4 {[%emt 0:00:33]} 14. dxe4 {[%emt 0:00:55]} Ng6 {
[%emt 0:00:20]} 15. Qd5+ {[%emt 0:03:30]} Kh8 {[%emt 0:00:28]} 16. O-O {
[%emt 0:08:41]} Rxf3 {[%emt 0:03:25]} 17. gxf3 {[%emt 0:12:04]} Nf4 {[%emt 0:
00:00]} 18. Qf7 {[%emt 0:02:36]} Qg5+ {[%emt 0:00:20]} 0-1

[Event "44th Chess Olympiad Women 2022"]
[Site "Chennai"]
[Date "2022.08.03"]
[Round "6.53"]
[White "Nansubuga, Gloria"]
[Black "James, Shemilah"]
[Result "1-0"]
[WhiteElo "1538"]
[BlackElo "1590"]
[Annotator "NA RC"]
[PlyCount "109"]
[EventDate "2022.??.??"]
[TimeControl "60"]

1. e4 {[%emt 0:01:03]} e5 {[%emt 0:00:32]} 2. Nf3 {[%emt 0:00:43]} Nc6 {
[%emt 0:00:24]} 3. Bc4 {[%emt 0:00:09]} Bc5 {[%emt 0:00:41]} 4. c3 {[%emt 0:00:
00]} Nf6 {[%emt 0:00:20]} 5. d4 {[%emt 0:00:24]} exd4 {[%emt 0:03:17]} 6. cxd4
{[%emt 0:00:06]} Bb4+ {[%emt 0:01:21]} 7. Bd2 {[%emt 0:00:39]} Bxd2+ {[%emt 0:
00:00]} 8. Nbxd2 {[%emt 0:00:10]} d5 {[%emt 0:09:17]} 9. exd5 {[%emt 0:01:56]}
Nxd5 {[%emt 0:01:09]} 10. O-O {[%emt 0:01:04]} O-O {[%emt 0:00:44]} 11. Ne4 {
[%emt 0:03:31]} Bg4 {[%emt 0:06:16]} 12. h3 {[%emt 0:00:22]} Bh5 {[%emt 0:00:
00]} 13. Ng3 {[%emt 0:02:02]} Bxf3 {[%emt 0:03:30]} 14. Qxf3 {[%emt 0:00:18]}
Nb6 {[%emt 0:01:20]} 15. Bd3 {[%emt 0:05:00]} Nxd4 {[%emt 0:06:51]} 16. Qxb7 {
[%emt 0:01:54]} Ne6 {[%emt 0:04:59]} 17. Rad1 {[%emt 0:02:47]} Nc5 {[%emt 0:00:
00]} 18. Qf3 {[%emt 0:01:02]} Nxd3 {[%emt 0:00:58]} 19. Rxd3 {[%emt 0:04:06]}
Qg5 {[%emt 0:02:12]} 20. Ne4 {[%emt 0:01:45]} Qe5 {[%emt 0:03:39]} 21. Nc3 {
[%emt 0:06:57]} Rad8 {[%emt 0:02:50]} 22. Rfd1 {[%emt 0:01:40]} Rxd3 {[%emt 0:
00:00]} 23. Rxd3 {[%emt 0:00:53]} Qe1+ {[%emt 0:01:58]} 24. Kh2 {[%emt 0:00:03]
} Nc4 {[%emt 0:03:41]} 25. Rd1 {[%emt 0:03:23]} Qe5+ {[%emt 0:00:47]} 26. Qg3 {
[%emt 0:00:36]} Qxg3+ {[%emt 0:01:52]} 27. Kxg3 {[%emt 0:00:12]} Nd6 {[%emt 0:
00:00]} 28. Nd5 {[%emt 0:01:30]} Rd8 {[%emt 0:01:41]} 29. Kf3 {[%emt 0:01:35]}
Nb7 {[%emt 0:04:31]} 30. Re1 {[%emt 0:02:48]} c5 {[%emt 0:04:27]} 31. Re7 {
[%emt 0:01:07]} Kf8 {[%emt 0:00:32]} 32. Rxb7 {[%emt 0:00:57]} Rxd5 {[%emt 0:
00:00]} 33. Rxa7 {[%emt 0:00:14]} Rf5+ {[%emt 0:00:26]} 34. Ke3 {[%emt 0:00:57]
} Re5+ {[%emt 0:01:05]} 35. Kd3 {[%emt 0:00:06]} Rd5+ {[%emt 0:01:19]} 36. Ke3
{[%emt 0:03:09]} Re5+ {[%emt 0:00:24]} 37. Kd3 {[%emt 0:00:02]} Rd5+ {[%emt 0:
00:00]} 38. Kc3 {[%emt 0:00:19]} Rd1 {[%emt 0:01:24]} 39. Ra5 {[%emt 0:01:17]}
Rc1+ {[%emt 0:01:58]} 40. Kd2 {[%emt 0:00:29]} Rb1 {[%emt 0:00:56]} 41. Kc2 {
[%emt 0:30:38]} Rf1 {[%emt 0:30:30]} 42. Rxc5 {[%emt 0:01:06]} Rxf2+ {[%emt 0:
00:00]} 43. Kb3 {[%emt 0:00:43]} Rxg2 {[%emt 0:00:58]} 44. a4 {[%emt 0:00:17]}
Rd2 {[%emt 0:02:46]} 45. a5 {[%emt 0:00:35]} Rd8 {[%emt 0:00:23]} 46. Kc4 {
[%emt 0:00:59]} Ra8 {[%emt 0:01:20]} 47. b4 {[%emt 0:00:09]} Ke7 {[%emt 0:00:
00]} 48. Kb5 {[%emt 0:01:34]} Rb8+ {[%emt 0:02:18]} 49. Ka4 {[%emt 0:00:13]}
Kd6 {[%emt 0:00:32]} 50. a6 {[%emt 0:00:18]} Ra8 {[%emt 0:00:38]} 51. Ka5 {
[%emt 0:00:30]} g6 {[%emt 0:01:43]} 52. Rc3 {[%emt 0:00:23]} f5 {[%emt 0:00:00]
} 53. b5 {[%emt 0:00:00]} f4 {[%emt 0:00:00]} 54. b6 {[%emt 0:00:00]} Kd7 {
[%emt 0:00:00]} 55. b7 {[%emt 0:00:00]} 1-0

[Event "44th Chess Olympiad Women 2022"]
[Site "Chennai"]
[Date "2022.08.03"]
[Round "6.53"]
[White "Takali Milly"]
[Black "Martin, Kayla"]
[Result "1-0"]
[WhiteElo "1482"]
[BlackElo "1138"]
[Annotator "NA RC"]
[PlyCount "33"]
[EventDate "2022.??.??"]
[TimeControl "60"]

1. d4 {[%emt 0:01:00]} c6 {[%emt 0:00:11]} 2. Nf3 {[%emt 0:00:57]} d6 {[%emt 0:
00:00]} 3. c4 {[%emt 0:00:31]} Nf6 {[%emt 0:00:35]} 4. Nc3 {[%emt 0:00:04]} Qc7
{[%emt 0:00:48]} 5. Bf4 {[%emt 0:01:37]} Nbd7 {[%emt 0:00:32]} 6. e3 {[%emt 0:
00:00]} e5 {[%emt 0:01:04]} 7. Bg3 {[%emt 0:00:31]} Be7 {[%emt 0:00:33]} 8. Bd3
{[%emt 0:00:24]} a6 {[%emt 0:00:59]} 9. a4 {[%emt 0:00:29]} Qb6 {[%emt 0:01:41]
} 10. Qc2 {[%emt 0:04:01]} Qc7 {[%emt 0:02:29]} 11. h3 {[%emt 0:00:58]} b6 {
[%emt 0:01:51]} 12. O-O {[%emt 0:00:10]} Bb7 {[%emt 0:00:09]} 13. Rac1 {
[%emt 0:00:19]} exd4 {[%emt 0:07:36]} 14. exd4 {[%emt 0:00:08]} Qc8 {[%emt 0:
00:00]} 15. Rfe1 {[%emt 0:00:07]} Qc7 {[%emt 0:11:11]} 16. Re2 {[%emt 0:00:47]}
O-O-O {[%emt 0:00:36]} 17. Rxe7 {[%emt 0:00:04]} 1-0

[Event "44th Chess Olympiad Women 2022"]
[Site "Chennai"]
[Date "2022.08.03"]
[Round "6.54"]
[White "Deng, Jing Xin Crystal"]
[Black "Mpinganjira, Ellen"]
[Result "1-0"]
[WhiteElo "1914"]
[BlackElo "1334"]
[Annotator "NA RC"]
[PlyCount "57"]
[EventDate "2022.??.??"]
[TimeControl "60"]

1. d4 {[%emt 0:00:03]} c5 {[%emt 0:00:20]} 2. d5 {[%emt 0:00:01]} d6 {[%emt 0:
00:00]} 3. c4 {[%emt 0:00:04]} g6 {[%emt 0:01:18]} 4. Nc3 {[%emt 0:00:02]} Bg7
{[%emt 0:00:13]} 5. e4 {[%emt 0:00:15]} Na6 {[%emt 0:00:26]} 6. h3 {[%emt 0:00:
00]} Nf6 {[%emt 0:02:29]} 7. Nf3 {[%emt 0:01:34]} Nc7 {[%emt 0:00:53]} 8. Bd3 {
[%emt 0:00:36]} a6 {[%emt 0:06:55]} 9. a4 {[%emt 0:05:06]} Bd7 {[%emt 0:00:00]}
10. O-O {[%emt 0:05:46]} O-O {[%emt 0:00:00]} 11. Re1 {[%emt 0:01:21]} Re8 {
[%emt 0:00:00]} 12. Bf1 {[%emt 0:09:12]} Qc8 {[%emt 0:01:09]} 13. Bf4 {[%emt 0:
00:00]} Qd8 {[%emt 0:03:46]} 14. Qd2 {[%emt 0:11:22]} Bc8 {[%emt 0:00:45]} 15.
Rad1 {[%emt 0:04:12]} b6 {[%emt 0:07:04]} 16. e5 {[%emt 0:16:04]} dxe5 {
[%emt 0:07:57]} 17. Nxe5 {[%emt 0:00:15]} Bb7 {[%emt 0:02:40]} 18. Qe3 {
[%emt 0:04:43]} Nd7 {[%emt 0:07:15]} 19. Nc6 {[%emt 0:01:36]} Bxc6 {[%emt 0:00:
00]} 20. dxc6 {[%emt 0:00:07]} Bd4 {[%emt 0:00:11]} 21. Qg3 {[%emt 0:01:44]}
Ne6 {[%emt 0:09:51]} 22. cxd7 {[%emt 0:01:00]} Qxd7 {[%emt 0:00:14]} 23. Nd5 {
[%emt 0:01:26]} Qb7 {[%emt 0:03:49]} 24. Be5 {[%emt 0:00:25]} Rad8 {[%emt 0:00:
00]} 25. Bxd4 {[%emt 0:01:31]} Nxd4 {[%emt 0:01:26]} 26. Qg5 {[%emt 0:03:27]}
f6 {[%emt 0:06:01]} 27. Qg4 {[%emt 0:02:11]} Kf7 {[%emt 0:03:18]} 28. Bd3 {
[%emt 0:01:36]} e6 {[%emt 0:02:36]} 29. Qh4 {[%emt 0:00:51]} 1-0

[Event "44th Chess Olympiad Women 2022"]
[Site "Chennai"]
[Date "2022.08.03"]
[Round "6.54"]
[White "Jambo, Linda"]
[Black "Li, Joy Ching"]
[Result "1/2-1/2"]
[WhiteElo "1426"]
[BlackElo "1386"]
[Annotator "NA RC"]
[PlyCount "98"]
[EventDate "2022.??.??"]
[TimeControl "60"]

1. e4 {[%emt 0:00:03]} c5 {[%emt 0:00:06]} 2. Nf3 {[%emt 0:00:05]} g6 {[%emt 0:
00:00]} 3. Bc4 {[%emt 0:00:22]} Bg7 {[%emt 0:00:18]} 4. c3 {[%emt 0:01:52]} Nc6
{[%emt 0:01:47]} 5. O-O {[%emt 0:01:42]} d6 {[%emt 0:02:14]} 6. d3 {[%emt 0:00:
00]} Nf6 {[%emt 0:01:05]} 7. Bg5 {[%emt 0:00:39]} O-O {[%emt 0:01:16]} 8. Qc1 {
[%emt 0:03:07]} Ng4 {[%emt 0:03:19]} 9. h3 {[%emt 0:00:42]} Nge5 {[%emt 0:00:
00]} 10. Nbd2 {[%emt 0:08:26]} Nxc4 {[%emt 0:10:26]} 11. Nxc4 {[%emt 0:00:34]}
d5 {[%emt 0:08:11]} 12. exd5 {[%emt 0:07:16]} Qxd5 {[%emt 0:01:27]} 13. Qe3 {
[%emt 0:03:03]} Bf5 {[%emt 0:04:36]} 14. Rfd1 {[%emt 0:05:04]} b5 {[%emt 0:00:
00]} 15. Na3 {[%emt 0:04:29]} b4 {[%emt 0:05:11]} 16. Nb5 {[%emt 0:07:46]} Rfc8
{[%emt 0:01:29]} 17. c4 {[%emt 0:11:44]} Qd7 {[%emt 0:02:36]} 18. d4 {[%emt 0:
00:00]} Qe6 {[%emt 0:20:54]} 19. Qxe6 {[%emt 0:08:04]} fxe6 {[%emt 0:00:36]}
20. dxc5 {[%emt 0:00:30]} e5 {[%emt 0:00:39]} 21. a3 {[%emt 0:12:54]} a6 {
[%emt 0:00:31]} 22. axb4 {[%emt 0:01:44]} axb5 {[%emt 0:00:15]} 23. Rxa8 {
[%emt 0:00:15]} Rxa8 {[%emt 0:00:30]} 24. cxb5 {[%emt 0:00:10]} Nxb4 {[%emt 0:
00:00]} 25. Bxe7 {[%emt 0:00:13]} e4 {[%emt 0:01:55]} 26. Nd4 {[%emt 0:02:59]}
Nd3 {[%emt 0:02:21]} 27. Nxf5 {[%emt 0:00:31]} gxf5 {[%emt 0:00:23]} 28. b6 {
[%emt 0:00:47]} Be5 {[%emt 0:01:20]} 29. b7 {[%emt 0:03:29]} Re8 {[%emt 0:00:
00]} 30. Bd6 {[%emt 0:02:25]} Bxd6 {[%emt 0:04:53]} 31. cxd6 {[%emt 0:00:06]}
Kf7 {[%emt 0:00:54]} 32. Ra1 {[%emt 0:00:16]} Nc5 {[%emt 0:03:34]} 33. Ra7 {
[%emt 0:03:04]} Kf8 {[%emt 0:00:00]} 34. d7 {[%emt 0:00:48]} Nxd7 {[%emt 0:00:
00]} 35. Ra8 {[%emt 0:00:31]} Rb8 {[%emt 0:00:00]} 36. Rxb8+ {[%emt 0:00:42]}
Nxb8 {[%emt 0:00:00]} 37. Kf1 {[%emt 0:00:06]} Ke7 {[%emt 0:01:25]} 38. Ke2 {
[%emt 0:00:01]} Ke6 {[%emt 0:00:35]} 39. Ke3 {[%emt 0:00:48]} Ke5 {[%emt 0:00:
00]} 40. g3 {[%emt 0:00:18]} Nd7 {[%emt 0:04:15]} 41. h4 {[%emt 0:31:42]} Nb8 {
[%emt 0:30:57]} 42. h5 {[%emt 0:02:10]} Nd7 {[%emt 0:00:48]} 43. f3 {[%emt 0:
00:00]} exf3 {[%emt 0:00:00]} 44. Kxf3 {[%emt 0:00:00]} Nb8 {[%emt 0:00:00]}
45. g4 {[%emt 0:00:00]} fxg4+ {[%emt 0:00:00]} 46. Kxg4 {[%emt 0:00:00]} h6 {
[%emt 0:00:00]} 47. Kf3 {[%emt 0:00:00]} Kf5 {[%emt 0:00:00]} 48. Ke3 {[%emt 0:
00:00]} Kg5 {[%emt 0:00:01]} 49. Kd4 Kf5 {[%emt 0:00:18]} 1/2-1/2